[Event "45th FIDE Womens Olympiad 2024"]
[Site "Budapest"]
[Date "2024.09.15"]
[Round "5.23"]
[White "Lintle, Molise"]
[Black "Tchouateu, Tankeu Stephanie"]
[Result "1-0"]
[ECO "D05"]
[WhiteElo "1583"]
[BlackElo "1565"]
[PlyCount "129"]
[EventDate "2024.09.05"]
[EventType "team-tourn"]
[EventCountry "HUN"]
[WhiteTeam "Lesotho"]
[BlackTeam "Cameroon"]
[WhiteTeamCountry "LES"]
[BlackTeamCountry "CAM"]
[TimeControl "40/5400+30:1800+30"]

1. Nf3 d5 2. d4 Nf6 3. e3 e6 4. Bd3 Bd6 5. Nbd2 Nc6 6. a3 a6 7. b3 O-O 8. Bb2 Re8 9. O-O e5 10. dxe5 Bxe5 11. Nxe5 Nxe5 12. Be2 Nc6 13. Nf3 Be6 14. Re1 h6 15. Nd4 Nxd4 16. Qxd4 c6 17. Bd3 Qe7 18. b4 Rad8 19. Rad1 Bg4 20. f3 Bh5 21. Qh4 Bg6 22. Bxg6 fxg6 23. Bxf6 Qxf6 24. Qxf6 gxf6 25. Kf2 Kg7 26. h4 h5 27. g4 Kh6 28. gxh5 Kxh5 29. Rg1 Rd6 30. c4 Red8 31. c5 R6d7 32. Rd4 Ra8 33. Rdg4 Rg7 34. f4 f5 35. Rg5+ Kh6 36. h5 Rag8 37. Rh1 Re7 38. hxg6+ Kg7 39. Rh7+ Kf6 40. Rxf5+ Kxf5 41. Rxe7 Rxg6 42. Rxb7 Ke4 43. Rb6 Rh6 44. Rxa6 Rh2+ 45. Kg3 Re2 46. Ra8 Rxe3+ 47. Kf2 Kxf4 48. Rf8+ Ke4 49. Re8+ Kd4 50. Rxe3 Kc4 51. Ke2 d4 52. Rd3 Kb5 53. Rxd4 Ka4 54. Rd6 Kxa3 55. Rxc6 Kxb4 56. Kd3 Kb5 57. Rc8 Kb4 58. Kd4 Kb3 59. Rb8+ Kc2 60. c6 Kd2 61. c7 Ke2 62. Rb3 Kd2 63. Rb2+ Kc1 64. Rh2 Kb1 65. Kc3 1-0

[Event "45th FIDE Womens Olympiad 2024"]
[Site "Budapest"]
[Date "2024.09.15"]
[Round "5.24"]
[White "Isgenderova, Hayale"]
[Black "Sliwicka, Alicja"]
[Result "0-1"]
[ECO "B31"]
[WhiteElo "2124"]
[BlackElo "2373"]
[Annotator "RC"]
[PlyCount "78"]
[EventDate "2024.09.05"]
[EventType "team-tourn"]
[EventCountry "HUN"]
[SourceTitle "playchess.com"]
[Source "ChessBase"]
[SourceQuality "1"]
[WhiteTeam "Turkiye"]
[BlackTeam "Poland"]
[WhiteTeamCountry "TUR"]
[BlackTeamCountry "POL"]
[TimeControl "40/5400+30:1800+30"]

1. e4 {[%emt 0:00:06]} c5 {[%emt 0:00:07]} 2. Nf3 {[%emt 0:00:11]} Nc6 {[%emt 0:00:07]} 3. Bb5 {[%emt 0:00:21]} g6 {[%emt 0:00:10]} 4. O-O {[%emt 0:00:25]} Bg7 {[%emt 0:00:08]} 5. c3 {[%emt 0:00:56]} e5 {[%emt 0:00:13]} 6. d3 {[%emt 0:04:37]} Nge7 {[%emt 0:03:22]} 7. Be3 {[%emt 0:03:28]} d6 {[%emt 0:03:59]} 8. d4 {[%emt 0:07:00]} exd4 {[%emt 0:09:41]} 9. cxd4 {[%emt 0:02:24]} O-O {[%emt 0:03:01]} 10. Nc3 {[%emt 0:04:17]} b6 {[%emt 0:24:38]} 11. h3 {[%emt 0:15:14]} Bb7 {[%emt 0:02:17]} 12. Qd2 {[%emt 0:01:08]} Rc8 {[%emt 0:07:33]} 13. Rad1 {[%emt 0:05:53]} cxd4 {[%emt 0:10:03]} 14. Nxd4 {[%emt 0:00:46]} Ne5 {[%emt 0:00:35]} 15. f4 {[%emt 0:14:32]} Nc4 {[%emt 0:01:59]} 16. Bxc4 {[%emt 0:00:07]} Rxc4 {[%emt 0:00:04]} 17. Ndb5 {[%emt 0:03:53]} d5 {[%emt 0:03:07]} 18. b3 {[%emt 0:05:51]} Rc8 {[%emt 0:00:45]} 19. Nxd5 {[%emt 0:02:09]} Nxd5 {[%emt 0:01:02]} 20. exd5 {[%emt 0:00:11]} a6 {[%emt 0:02:43]} 21. Na3 {[%emt 0:09:00]} b5 {[%emt 0:00:25]} 22. f5 {[%emt 0:01:16]} Qd6 {[%emt 0:01:53]} 23. Nb1 {[%emt 0:12:11]} Rfd8 {[%emt 0:01:52]} 24. Qf2 {[%emt 0:01:06]} Rd7 {[%emt 0:02:04]} 25. f6 {[%emt 0:00:20]} Bf8 {[%emt 0:00:31]} 26. Rd4 {[%emt 0:02:43]} Qe5 {[%emt 0:01:08]} 27. Nd2 {[%emt 0:02:42]} Rxd5 {[%emt 0:02:47]} 28. Rxd5 {[%emt 0:00:34]} Qxd5 {[%emt 0:00:07]} 29. Nf3 {[%emt 0:00:04]} Re8 {[%emt 0:01:41]} 30. Bd4 {[%emt 0:01:00]} Qh5 {[%emt 0:03:43]} 31. Qg3 {[%emt 0:00:50]} Qd5 {[%emt 0:02:18]} 32. Kh1 {[%emt 0:00:23]} Bd6 {[%emt 0:00:20]} 33. Qh4 {[%emt 0:00:41]} Re4 {[%emt 0:00:44]} 34. Qh6 {[%emt 0:00:04]} Bf8 {[%emt 0:00:05]} 35. Qd2 {[%emt 0:00:13]} Qd7 {[%emt 0:01:08]} 36. Qc3 {[%emt 0:01:00]} b4 {[%emt 0:01:32]} 37. Qc4 {[%emt 0:00:22]} Rf4 {[%emt 0:00:47]} 38. Qd3 {[%emt 0:00:59]} Bxf3 {[%emt 0:00:28]} 39. Rxf3 {[%emt 0:00:29]} Rxd4 {[%emt 0:00:13]} 0-1

[Event "45th FIDE Womens Olympiad 2024"]
[Site "Budapest"]
[Date "2024.09.15"]
[Round "5.25"]
[White "Mammadzada, Gunay"]
[Black "Osmak, Yuliia"]
[Result "0-1"]
[ECO "B92"]
[WhiteElo "2433"]
[BlackElo "2471"]
[Annotator "TA"]
[PlyCount "54"]
[EventDate "2024.09.05"]
[EventType "team-tourn"]
[EventCountry "HUN"]
[SourceTitle "playchess.com"]
[Source "ChessBase"]
[SourceQuality "1"]
[WhiteTeam "Azerbaijan"]
[BlackTeam "Ukraine"]
[WhiteTeamCountry "AZE"]
[BlackTeamCountry "UKR"]
[TimeControl "40/5400+30:1800+30"]

{[%evp 16,54,23,-7,0,-15,0,-10,-17,-77,-65,-70,-70,-72,-64,-102,-64,-125,-62,-57,-60,-133,-136,-149,-140,-147,-152,-306,-324,-617,-606,-613,-627,-621,-613,-884,-800,-1441,-1452,-1605,-1502]} 1. e4 {[%emt 0:00:07]} c5 {[%emt 0:00:03]} 2. Nf3 {[%emt 0:00:05]} d6 {[%emt 0:00:03]} 3. d4 {[%emt 0:00:16]} cxd4 {[%emt 0:00:03]} 4. Nxd4 {[%emt 0:01:01]} Nf6 {[%emt 0:00:05]} 5. Nc3 {[%emt 0:00:06]} a6 {[%emt 0:00:03]} 6. Be3 {[%emt 0:08:26]} e5 {[%emt 0:00:08]} 7. Nb3 {[%emt 0:00:04]} Be7 {[%emt 0:00:04]} 8. f3 {[%emt 0:03:39]} Be6 {[%emt 0:01:23]} 9. Be2 {[%emt 0:05:51]} Nbd7 {[%emt 0:02:31]} 10. a4 {[%emt 0:03:37]} Nb6 {[%emt 0:11:21]} 11. O-O {[%emt 0:18:56]} d5 {[%emt 0:07:13] The position is equal.} 12. exd5 {[%emt 0:20:59]} (12. a5 $11 d4 13. axb6 Bxb3 14. cxb3 dxe3 15. Na4) 12... Nbxd5 $17 {[%emt 0:01:23]} 13. Nxd5 {[%emt 0:00:18]} Nxd5 {[%emt 0:01:18]} 14. Bf2 {[%emt 0:00:32]} Qc7 {[%emt 0:05:08] Prevents Bc4.} 15. Qd2 {[%emt 0:08:56]} Rc8 {[%emt 0:07:07][%cal Od5f4]} 16. c3 {[%emt 0:05:00]} (16. Rfc1 $15) 16... Rd8 {[%emt 0:22:13]} (16... Nf4 $17 17. Nc1 O-O) 17. Qc2 $15 {[%emt 0:09:39]} O-O {[%emt 0:20:07] Threatens to win with ...Nf4.} 18. Nc1 {[%emt 0:02:53]} (18. Rfe1 $15) 18... Nf4 {[%emt 0:01:52]} 19. Re1 {[%emt 0:01:05]} Bg5 {[%emt 0:02:06] Black is much more active.} 20. Nb3 {[%emt 0:06:22] Inhibits Rd2.} Qc8 {[%emt 0:09:14] And now ...Bf5 would win.} 21. Nc5 $2 {[%emt 0:01:20] [#] Loses the game.} (21. c4 $17) 21... Rd2 $1 $19 {[%emt 0:01:58]} 22. Qe4 {[%emt 0:00:05]} (22. Qxd2 Nh3+ 23. gxh3 Bxd2 24. Red1) 22... Bd5 {[%emt 0:03:31] Black is clearly winning.} (22... Rxb2 23. Nxe6 Nxe2+ (23... fxe6 24. Qxe5 Rf5 25. Qe4 $11) (23... Qxe6 24. Bc4 $15) (23... Nxe6 24. Rab1 $15) 24. Rxe2 $15) 23. Qxe5 {[%emt 0:00:18]} f6 {[%emt 0:00:04]} (23... Rxb2 24. Qxg5 Rxe2 25. Qxf4 $16) 24. Qe7 {[%emt 0:01:36]} Re8 {[%emt 0:00:12]} ({Not} 24... Rxb2 25. Bf1 Ng6 26. Qd7 Qxd7 27. Nxd7 $14) 25. Qxe8+ {[%emt 0:00:28]} Qxe8 {[%emt 0:00:06]} 26. Bb5 {[%emt 0:00:18]} Qh5 {[%emt 0:01:55] [#] ( -> ...Nh3+)} (26... axb5 27. Rxe8+ Kf7 28. Ne4 Ne2+ 29. Kf1 Kxe8 30. Nxd2 Nxc3 31. bxc3 $16) 27. Re8+ {[%emt 0:01:21]} Kf7 {[%emt 0:00:04] Weighted Error Value: White=1.15/Black=0.07 (flawless) .  Mistake:       	White=5     	Black=1      Inaccurate:     	White=1     	Black=1      OK:         	White=5     	Black=5      Strong:       	---       	Black=1} 0-1

[Event "45th FIDE Womens Olympiad 2024"]
[Site "Budapest"]
[Date "2024.09.15"]
[Round "5.25"]
[White "Gertrude, Banini"]
[Black "Nihaya, Ahmed"]
[Result "1/2-1/2"]
[ECO "D00"]
[WhiteElo "1712"]
[BlackElo "1589"]
[PlyCount "75"]
[EventDate "2024.09.05"]
[EventType "team-tourn"]
[EventCountry "HUN"]
[WhiteTeam "Ghana"]
[BlackTeam "Maldives"]
[WhiteTeamCountry "GHA"]
[BlackTeamCountry "MDV"]
[TimeControl "40/5400+30:1800+30"]

1. d4 d5 2. Bf4 Nf6 3. e3 c5 4. dxc5 Nc6 5. Bb5 Bf5 6. c3 a6 7. Bxc6+ bxc6 8. b4 e6 9. Nf3 Bg4 10. Qa4 Bxf3 11. Qxc6+ Nd7 12. gxf3 Be7 13. Qc7 O-O 14. Qxd8 Rfxd8 15. Nd2 e5 16. Bg3 Bf6 17. Rc1 g6 18. O-O h5 19. h3 Bg7 20. Rfd1 Nf8 21. Nb3 Ne6 22. Rd2 d4 23. cxd4 exd4 24. exd4 Bh6 25. f4 Nxf4 26. Bxf4 Bxf4 27. Rcd1 Bxd2 28. Rxd2 Rd5 29. f3 Kf8 30. Re2 Re8 31. Rc2 Ke7 32. Kf2 Kd7 33. a4 Rb8 34. Rc4 Kc7 35. Nd2 Rbd8 36. Nb3 Rb8 37. Nd2 Rbd8 38. Nb3 1/2-1/2

[Event "45th FIDE Womens Olympiad 2024"]
[Site "Budapest"]
[Date "2024.09.15"]
[Round "5.26"]
[White "Ushenina, Anna"]
[Black "Fataliyeva, Ulviyya"]
[Result "1/2-1/2"]
[ECO "A13"]
[WhiteElo "2417"]
[BlackElo "2378"]
[Annotator "TA"]
[PlyCount "158"]
[EventDate "2024.09.05"]
[EventType "team-tourn"]
[EventCountry "HUN"]
[SourceTitle "playchess.com"]
[Source "ChessBase"]
[SourceQuality "1"]
[WhiteTeam "Ukraine"]
[BlackTeam "Azerbaijan"]
[WhiteTeamCountry "UKR"]
[BlackTeamCountry "AZE"]
[TimeControl "40/5400+30:1800+30"]

{[%evp 94,158,104,85,77,77,77,77,77,77,77,77,81,77,77,0,77,77,114,77,114,77,114,77,77,78,114,77,77,77,114,114,114,77,114,114,114,114,114,114,114,77,77,0,0,0,0,0,0,0,0,0,0,0,0,0,0,0,0,0,0,0,8,8,8,8,8]} 1. Nf3 {[%emt 0:00:13]} d5 {[%emt 0:00:10]} 2. e3 {[%emt 0:00:40]} Nf6 {[%emt 0:00:10]} 3. c4 {[%emt 0:00:43]} e6 {[%emt 0:00:06]} 4. b3 {[%emt 0:02:12]} Be7 {[%emt 0:00:06]} 5. Bb2 {[%emt 0:00:23]} O-O {[%emt 0:00:07]} 6. Be2 {[%emt 0:00:57]} b6 {[%emt 0:00:18]} 7. cxd5 {[%emt 0:02:30]} exd5 {[%emt 0:02:40]} 8. O-O {[%emt 0:03:35]} c5 {[%emt 0:01:15]} 9. d4 {[%emt 0:00:28]} Nc6 {[%emt 0:00:47]} 10. Nc3 {[%emt 0:06:48]} Bb7 {[%emt 0:05:53]} 11. Rc1 {[%emt 0:01:36]} Rc8 {[%emt 0:00:08]} 12. dxc5 {[%emt 0:13:40]} bxc5 {[%emt 0:01:43]} 13. Na4 {[%emt 0:00:03] A13: English Opening: 1...e6.} Ne4 {[%emt 0:08:48]} 14. Nd2 {[%emt 0:01:38]} Nb4 {[%emt 0:30:21]} 15. a3 {[%emt 0:06:22]} Na6 {[%emt 0:03:06]} 16. Nxe4 {[%emt 0:03:13]} dxe4 {[%emt 0:00:06]} 17. Rc2 $146 {[%emt 0:16:42]} ({Predecessor:} 17. Qc2 Qd7 18. h3 Rfd8 19. Bc4 Nc7 20. Qc3 Bf6 21. Qa5 Bxb2 22. Nxb2 Qc6 23. Na4 {1-0 Karthik,V (2565)-Eke,S (2180) Mersin op 7th 2023 (1)}) 17... Qxd1 {[%emt 0:06:56]} 18. Rxd1 {[%emt 0:01:43]} Nb8 {[%emt 0:04:11]} 19. Be5 {[%emt 0:09:16]} c4 {[%emt 0:15:56]} 20. b4 {[%emt 0:02:27]} Bc6 {[%emt 0:01:33]} 21. Nb2 {[%emt 0:07:02]} Nd7 {[%emt 0:00:11]} 22. Bd4 {[%emt 0:00:28]} a5 {[%emt 0:02:26]} 23. Rxc4 {[%emt 0:04:28]} axb4 {[%emt 0:00:28]} 24. axb4 {[%emt 0:00:01]} Bd5 {[%emt 0:01:19]} 25. Rxc8 {[%emt 0:02:29]} Rxc8 {[%emt 0:00:01]} 26. Bg4 {[%emt 0:01:45]} Rc7 {[%emt 0:08:33]} 27. Bxd7 {[%emt 0:08:12]} Rxd7 {[%emt 0:00:04]} 28. Bc5 {[%emt 0:00:03]} Bf6 {[%emt 0:03:26]} 29. Nc4 {[%emt 0:00:18]} Rd8 {[%emt 0:01:48]} 30. Na5 {[%emt 0:02:30]} h6 {[%emt 0:02:11]} 31. g3 {[%emt 0:00:56]} Ba8 {[%emt 0:00:18]} 32. Rxd8+ Bxd8 {[%emt 0:00:01]} 33. Nb3 {[%emt 0:02:49]} Bd5 {[%emt 0:00:29]} 34. Nd4 {[%emt 0:00:07]} Bf6 {[%emt 0:00:17]} 35. Nf5 {[%emt 0:01:00]} Bc6 {[%emt 0:01:05]} 36. Bd4 {[%emt 0:00:31]} Bd7 {[%emt 0:00:08]} 37. Nxh6+ {[%emt 0:00:26]} gxh6 {[%emt 0:00:41]} 38. Bxf6 {[%emt 0:00:03]} Kh7 {[%emt 0:00:12]} 39. Kf1 {[%emt 0:00:16]} Kg6 {[%emt 0:00:08]} 40. Bh8 {[%emt 0:00:50]} Kg5 {[%emt 0:01:46]} 41. Ke2 {[%emt 0:31:04]} Kf5 {[%emt 0:15:15]} 42. Kd2 {[%emt 0:00:00]} Ke6 {[%emt 0:00:08]} 43. g4 {[%emt 0:00:00]} Kd5 {[%emt 0:00:39]} 44. Bg7 {[%emt 0:00:00]} Kc4 {[%emt 0:02:46]} 45. Bxh6 {[%emt 0:00:00]} Kxb4 {[%emt 0:00:19]} 46. h3 {[%emt 0:00:00]} Kc5 {[%emt 0:00:39]} 47. Ke1 {[%emt 0:01:28]} Bb5 {[%emt 0:00:12]} 48. f4 {[%emt 0:00:12]} exf3 {[%emt 0:00:29]} 49. Kf2 {[%emt 0:00:02]} Bc6 {[%emt 0:00:28]} 50. Bf8+ {[%emt 0:00:06]} Kc4 {[%emt 0:01:58]} 51. h4 {[%emt 0:02:41]} Be4 {[%emt 0:00:04]} 52. h5 {[%emt 0:00:23]} Kd5 {[%emt 0:00:46]} 53. Kg3 {[%emt 0:00:14]} Kc4 {[%emt 0:03:00]} 54. Kf2 {[%emt 0:00:30]} (54. g5 $16) 54... Kd3 {[%emt 0:00:45]} (54... Kd5 $11) 55. Be7 $16 {[%emt 0:00:34]} Kc2 {[%emt 0:01:20]} 56. Bd8 {[%emt 0:00:59]} Kd3 {[%emt 0:00:09]} 57. Bb6 {[%emt 0:00:07]} Kc2 {[%emt 0:00:14]} 58. Bc7 {[%emt 0:00:48]} Kd3 {[%emt 0:00:05] [#]} 59. Bg3 $1 {[%emt 0:00:45]} Kd2 {[%emt 0:00:13]} 60. Bf4 {[%emt 0:00:26]} Kd3 {[%emt 0:00:04]} 61. Bd6 {[%emt 0:00:25]} Kc2 {[%emt 0:00:07]} 62. Bb4 {[%emt 0:00:15]} Kd3 {[%emt 0:00:19]} 63. Ba5 {[%emt 0:00:34]} Kc2 {[%emt 0:00:05]} 64. Be1 {[%emt 0:00:19]} Kd3 {[%emt 0:03:18]} 65. g5 {[%emt 0:00:11]} Kc2 {[%emt 0:00:30]} 66. Ba5 {[%emt 0:00:43]} Kd3 {[%emt 0:00:10]} 67. Bd8 {[%emt 0:00:46]} Kc2 {[%emt 0:00:14] [#]} 68. g6 {[%emt 0:00:24]} (68. h6 $1 $16 {[%cal Og5g6] Strongly threatening g6!} Kb3 (68... Kd3 69. Bf6) 69. Bc7) 68... fxg6 $11 {[%emt 0:00:05]} 69. h6 {[%emt 0:00:01]} g5 $1 {[%emt 0:00:01]} 70. Bxg5 {[%emt 0:00:03]} Kd3 {[%emt 0:00:12]} 71. Bf4 {[%emt 0:00:28]} Kc4 {[%emt 0:00:26]} 72. Bg3 {[%emt 0:01:10]} Kd5 {[%emt 0:00:05]} 73. Bh4 {[%emt 0:00:02]} Ke6 {[%emt 0:00:07]} 74. Kg3 {[%emt 0:00:01]} Kf7 {[%emt 0:00:47]} 75. Kf4 {[%emt 0:00:06]} Bb7 {[%emt 0:00:18]} 76. Kf5 {[%emt 0:01:03]} Kg8 {[%emt 0:00:24]} 77. e4 {[%emt 0:00:55]} Bxe4+ {[%emt 0:00:13]} 78. Kxe4 {[%emt 0:00:01]} Kh7 {[%emt 0:00:05]} 79. Kxf3 {[%emt 0:00:02]} Kxh6 {[%emt 0:00:03]} 1/2-1/2

[Event "45th FIDE Womens Olympiad 2024"]
[Site "Budapest"]
[Date "2024.09.15"]
[Round "5.27"]
[White "Beydullayeva, Govhar"]
[Black "Buksa, Nataliya"]
[Result "1-0"]
[ECO "D35"]
[WhiteElo "2395"]
[BlackElo "2387"]
[Annotator "TA"]
[PlyCount "129"]
[EventDate "2024.09.05"]
[EventType "team-tourn"]
[EventCountry "HUN"]
[SourceTitle "playchess.com"]
[Source "ChessBase"]
[SourceQuality "1"]
[WhiteTeam "Azerbaijan"]
[BlackTeam "Ukraine"]
[WhiteTeamCountry "AZE"]
[BlackTeamCountry "UKR"]
[TimeControl "40/5400+30:1800+30"]

{[%evp 44,129,40,20,20,21,27,28,28,28,28,14,30,0,31,14,37,31,38,40,40,40,38,6,6,6,31,31,31,31,31,31,31,0,31,31,31,25,25,0,25,25,31,31,31,25,25,0,25,25,25,0,0,0,154,189,167,182,810,801,829,808,945,931,1031,929,6514,1436,1600,1396,29982,1289,5297,4143,29966,29967,29988,29989,29989,29990,29990,29991,29992,29974,29993,29994,29994,29995]} 1. d4 {[%emt 0:00:03]} Nf6 {[%emt 0:01:17]} 2. c4 {[%emt 0:00:07]} e6 {[%emt 0:00:04]} 3. Nf3 {[%emt 0:00:05]} d5 {[%emt 0:00:07]} 4. Nc3 {[%emt 0:00:08]} Nbd7 {[%emt 0:00:28]} 5. cxd5 {[%emt 0:00:12]} exd5 {[%emt 0:00:04]} 6. Bg5 {[%emt 0:00:07]} c6 {[%emt 0:00:36]} 7. e3 {[%emt 0:00:27]} h6 {[%emt 0:01:20] D35: Queen's Gambit Declined: Exchange Variation.} 8. Bh4 {[%emt 0:00:09]} g5 {[%emt 0:01:27]} 9. Bg3 {[%emt 0:00:28]} Nh5 {[%emt 0:00:05]} 10. Bd3 {[%emt 0:00:22]} Nxg3 {[%emt 0:00:18]} 11. hxg3 {[%emt 0:00:04]} Bg7 {[%emt 0:00:02]} 12. O-O {[%emt 0:00:37]} O-O {[%emt 0:04:35]} 13. b4 {[%emt 0:01:50]} a6 {[%emt 0:02:31]} 14. a4 {[%emt 0:01:53]} Re8 $146 {[%emt 0:10:39]} ({Predecessor:} 14... Qe7 15. b5 a5 16. Qb3 Rd8 17. Rfc1 Nf8 18. Ne2 Bd7 19. Rab1 Qd6 20. bxc6 bxc6 {1-0 Moiseenko,A (2623)-Golubka,P (2479) UKR-ch 88th Lutsk 2019 (3)}) 15. Qc2 {[%emt 0:05:37]} Nf6 {[%emt 0:02:55]} 16. Ne5 {[%emt 0:19:43]} Ng4 {[%emt 0:06:20]} 17. Nxg4 {[%emt 0:03:58]} Bxg4 {[%emt 0:00:05]} 18. a5 {[%emt 0:02:01]} Qf6 {[%emt 0:10:49]} 19. Na4 {[%emt 0:02:15]} Rad8 {[%emt 0:06:37]} 20. Nc5 {[%emt 0:00:32]} Bc8 {[%emt 0:00:05]} 21. g4 {[%emt 0:14:13]} h5 {[%emt 0:14:01]} 22. gxh5 {[%emt 0:03:44]} Rd6 {[%emt 0:01:36]} 23. Qd1 {[%emt 0:08:20]} (23. g3 $5) 23... g4 $1 {[%emt 0:06:39]} 24. g3 {[%emt 0:04:49]} Qg5 {[%emt 0:01:14]} 25. Kg2 $1 {[%emt 0:00:50]} Rh6 {[%emt 0:00:45]} 26. Rh1 {[%emt 0:06:03]} Bf8 {[%emt 0:01:50]} 27. Rh4 {[%emt 0:05:53]} Bd6 {[%emt 0:06:46]} 28. Be2 {[%emt 0:00:50]} f5 {[%emt 0:01:16]} 29. Nd3 {[%emt 0:01:06]} Re7 {[%emt 0:00:16]} 30. Qd2 {[%emt 0:09:52]} Reh7 {[%emt 0:00:35]} 31. Rah1 {[%emt 0:02:13]} Rxh5 {[%emt 0:01:51]} 32. Rxh5 {[%emt 0:00:53]} Rxh5 {[%emt 0:00:04]} 33. Rxh5 {[%emt 0:01:38]} Qxh5 {[%emt 0:00:04]} 34. Kg1 {[%emt 0:01:10]} Qh7 {[%emt 0:02:21]} 35. Nc5 {[%emt 0:02:56]} Kf8 {[%emt 0:04:16]} 36. Bd3 {[%emt 0:00:16]} Qe7 {[%emt 0:01:13]} 37. Kg2 {[%emt 0:01:21]} Qh7 {[%emt 0:00:05]} 38. Kg1 {[%emt 0:00:41]} Qe7 {[%emt 0:00:03]} 39. Qc2 {[%emt 0:00:11]} Qg5 {[%emt 0:02:47]} 40. Kg2 {[%emt 0:00:53]} Qh5 {[%emt 0:05:13]} 41. Kg1 {[%emt 0:31:29]} Ke7 {[%emt 0:32:28]} 42. Qb1 {[%emt 0:00:00]} Kf6 {[%emt 0:00:00]} 43. Qf1 {[%emt 0:00:00]} Ke7 {[%emt 0:00:00]} 44. Qc1 {[%emt 0:00:00]} Qh8 {[%emt 0:00:00]} 45. Na4 {[%emt 0:00:00]} Qh6 {[%emt 0:00:00]} 46. Nb6 {[%emt 0:00:00]} Be6 {[%emt 0:00:00]} 47. Bxa6 {[%emt 0:00:00]} f4 {[%emt 0:00:00]} 48. exf4 $1 {[%emt 0:00:00]} (48. Bxb7 $2 fxg3 49. fxg3 Bxg3 $19) 48... Bf5 $2 {[%emt 0:00:00] [#]} (48... bxa6 $11 49. Qxc6 Qg6) 49. Bf1 $1 $16 {[%emt 0:00:00]} (49. Bxb7 Be4 50. f3 (50. Bxc6 $2 Qh1#) (50. Nc8+ Kd8 51. f3 Bxf3 52. Qf1 Bxb4) 50... Bxf3 51. Qe1+ (51. Qxc6 $2 Qh1+ 52. Kf2 Qg2+ 53. Ke3 Qe2#) 51... Kd8 52. Bxc6 Be4 $19) 49... Bxb4 {[%emt 0:00:28]} 50. Qb2 {[%emt 0:00:23]} Bxa5 $2 {[%emt 0:03:58]} (50... Qd6) 51. Qa3+ $18 {[%emt 0:00:40]} Kf7 {[%emt 0:03:22]} 52. Qxa5 {[%emt 0:00:04]} Be4 {[%emt 0:00:10]} 53. Bg2 {[%emt 0:00:08]} Bxg2 {[%emt 0:00:28]} 54. Kxg2 {[%emt 0:00:00]} Qh3+ {[%emt 0:00:04]} 55. Kg1 {[%emt 0:00:04]} Qh7 {[%emt 0:00:02]} 56. Qe1 {[%emt 0:02:21]} Qd3 {[%emt 0:00:10]} 57. Qa1 {[%emt 0:01:29]} (57. Nc8 $142 Qg6 58. Qe7+ Kg8 59. Nd6 (59. Qxb7 Qe6 $18) (59. Qd8+ Kf7 60. Nd6+ Ke6 61. f5+ Qxf5 62. Nxf5 Kxf5 63. Qd7+ Kf6 64. Qxb7 Kf5) 59... Qg7 60. Qe6+ (60. Qxb7 Qxb7 61. Nxb7 Kf7 $18) 60... Kh7 61. f5 (61. Qf5+ Qg6 62. Qd7+ Qg7 63. Qe6 c5 64. f5 Qh6 65. Qe7+ Kg8) 61... Qh6 62. Qe7+ (62. Nxb7 c5 63. Qxh6+ Kxh6 64. dxc5 d4 65. Nd6 Kg5 66. c6 d3) (62. f6 Qc1+ 63. Kg2 Qg5 64. f7 Qg7 65. Qf5+ Kh6 66. f8=Q Qxf8 67. Qxf8+ Kh5 68. Qf6 b5 69. Nf5 b4 70. Qh6#) 62... Kg8 63. f6 (63. Nxb7 Qg7 $18)) 57... Kf6 {[%emt 0:01:41]} 58. Nd7+ {[%emt 0:00:18]} Kf5 {[%emt 0:00:03]} 59. Nc5 {[%emt 0:00:39]} Qc2 {[%emt 0:00:51]} 60. Qe1 {[%emt 0:00:09]} Kg6 {[%emt 0:00:15]} 61. Qe6+ {[%emt 0:00:26]} Kg7 {[%emt 0:00:09]} 62. Qe7+ {[%emt 0:01:49]} Kh6 {[%emt 0:00:06]} 63. Qf6+ {[%emt 0:00:32]} Kh7 {[%emt 0:00:03]} 64. Ne6 {[%emt 0:00:21]} ({Stronger than} 64. Nxb7 Qd1+ 65. Kh2 Qe2 $11) 64... Qb1+ {[%emt 0:00:11]} 65. Kh2 {[%emt 0:00:03]} 1-0

[Event "45th FIDE Womens Olympiad 2024"]
[Site "Budapest"]
[Date "2024.09.15"]
[Round "5.27"]
[White "Dotse, Dzidzor Esi"]
[Black "Aishath, Iva Hassan"]
[Result "0-1"]
[ECO "D38"]
[WhiteElo "1530"]
[BlackElo "1422"]
[PlyCount "60"]
[EventDate "2024.09.05"]
[EventType "team-tourn"]
[EventCountry "HUN"]
[WhiteTeam "Ghana"]
[BlackTeam "Maldives"]
[WhiteTeamCountry "GHA"]
[BlackTeamCountry "MDV"]
[TimeControl "40/5400+30:1800+30"]

1. d4 d5 2. c4 e6 3. Nc3 Nf6 4. Nf3 Bb4 5. Bg5 O-O 6. e3 Bxc3+ 7. bxc3 h6 8. Bh4 c5 9. cxd5 exd5 10. Be2 Nbd7 11. O-O c4 12. Ne5 Qa5 13. Nxd7 Nxd7 14. Be7 Re8 15. Bb4 Qc7 16. Qa4 Nf6 17. Bf3 Bd7 18. Qc2 a5 19. Ba3 b5 20. Bc5 Ne4 21. Bxe4 Rxe4 22. Rfe1 Rb8 23. a3 Rbe8 24. h3 R8e6 25. Re2 Rg6 26. Kh1 Rh4 27. f4 Qc8 28. Rf1 Bxh3 29. gxh3 Qxh3+ 30. Rh2 Qxf1# {0-} 0-1